Cogmind - Beta 14 *** ADVENTURER MODE // 2025.03.29 @ 01:12:02 Player: iandao Result: Destroyed by S-27 Virus with Autogun Performance ------------- Evolutions (5) 2500 Regions Visited (15) 3000 Robots Destroyed (265) 1325 Value Destroyed (9057) 9057 Prototype IDs (14) 280 Alien Tech Used (0) 0 Bonus (1104) 1104 TOTAL SCORE: 17266 Bonus ------- High Alert Combat Kills 594 Follower Combat Kills 319 Entered Garrisons 200 Friendly Fire -9 Cogmind --------- Core Integrity 0/1000 Matter 17/300 Energy 99/100 System Corruption 2% Temperature Cool (0) Movement Core (50) Location -5/Extension Parts ------- > --- POWER (2) -------- (None) > --- PROPULSION (6) --- (None) > --- UTILITY (6) ------ Improved Target Analyzer > --- WEAPON (3) ------- (None) > --- INVENTORY (5) ---- Medium Storage Unit Flak Gun Coil Gun Enhanced Gauss Cannon Enhanced Gauss Cannon Peak State ------------ > --- POWER ------------ Light Angular Momentum Engine Reinforced Fission Core > --- PROPULSION ------- Makeshift Leg Improved Gravmag System Improved Gravmag System Gravmag Array Gyrokinetic Inverter > --- UTILITY ---------- Improved Heat Sink Advanced Heat Sink Advanced Cooling System Huge Storage Unit Improved Target Analyzer Weapon Cycler > --- WEAPON ----------- Enhanced Gauss Cannon Enhanced Gauss Cannon Enhanced Gauss Cannon > --- INVENTORY -------- Light Angular Momentum Engine Neutrino Core Cooled Cesium-ion Thruster Cooled Cesium-ion Thruster Medium Storage Unit Large Storage Unit High-capacity Matter Pod Improved Core Shielding Shield Generator Mini Drone Bay Long-range Proton Cannon Flak Gun Coil Gun Coil Gun Hypervelocity Gauss Rifle Enhanced Gauss Cannon Enhanced Gauss Cannon Enhanced Gauss Cannon [Rating: 91] Favorites ----------- Power Improved Deuterium Engine Engine Improved Deuterium Engine Power Core Fission Core Propulsion Light Treads Treads Light Treads Leg Carbon-fiber Leg Hover Unit Improved Gravmag System Flight Unit Flight Unit Utility Huge Storage Unit Device Improved Cooling System Storage Huge Storage Unit Processor Advanced Targeting Computer Hackware Hacking Suite Protection Hardened Medium Armor Plating Weapon Advanced Assault Cannon Energy Gun EM Pulse Gun Energy Cannon Plasma Cannon Ballistic Gun Heavy Assault Rifle Ballistic Cannon Advanced Assault Cannon Launcher Grenade Launcher Build | -11 -10 -9 -9 -8 -8 -8 -8 -7 -6 -6 -6 -6 -6 -5 -5 ------- Run | Yrd Mat Mat Min Mat Gar Mat Sto Fac Fac Was Fac Low Low Fac Ext Slots Evolved 10 | . . 2 . 2 . . . 2 2 . . . . 2 . Power 1 | . . . . . . . . . . . . . . 1 . Propulsion 4 | . . 1 . 2 . . . . . . . . . 1 . Utility 4 | . . 1 . . . . . 1 2 . . . . . . Weapon 1 | . . . . . . . . 1 . . . . . . . Parts Attached 200 | 5 10 18 17 32 8 15 10 16 7 7 21 9 . 22 3 Power 24 | 1 . 3 4 4 1 1 1 2 . . 1 . . 5 1 Engine 14 | 1 . 3 4 1 . 1 . 2 . . . . . 2 . Core 10 | . . . . 3 1 . 1 . . . 1 . . 3 1 Reactor . | . . . . . . . . . . . . . . . . Propulsion 75 | 2 2 3 6 15 7 7 9 4 2 3 6 4 . 5 . Treads 40 | . . . . 10 7 6 9 4 2 2 . . . . . Leg 10 | 2 . . . 5 . 1 . . . 1 . . . 1 . Wheel . | . . . . . . . . . . . . . . . . Hover 15 | . 2 3 . . . . . . . . 4 4 . 2 . Flight 10 | . . . 6 . . . . . . . 2 . . 2 . Utility 56 | . 4 7 6 7 . 1 . 6 5 . 10 3 . 7 . Device 26 | . 2 5 2 1 . . . 5 . . 5 . . 6 . Storage 10 | . 2 . 2 2 . . . . 1 . 1 1 . 1 . Processor 6 | . . . . 2 . . . . 2 . 2 . . . . Hackware 1 | . . . . . . . . 1 . . . . . . . Protection 13 | . . 2 2 2 . 1 . . 2 . 2 2 . . . Artifact . | . . . . . . . . . . . . . . . . Weapon 45 | 2 4 5 1 6 . 6 . 4 . 4 4 2 . 5 2 Energy Gun 4 | 1 1 2 . . . . . . . . . . . . . Energy Cannon 2 | . . 1 . . . . . 1 . . . . . . . Ballistic Gun 24 | 1 . 2 1 6 . 4 . 1 . 4 4 1 . . . Ballistic Cannon 12 | . . . . . . 2 . 2 . . . 1 . 5 2 Launcher 3 | . 3 . . . . . . . . . . . . . . Special Weapon . | . . . . . . . . . . . . . . . . Impact Weapon . | . . . . . . . . . . . . . . . . Slashing Weapon . | . . . . . . . . . . . . . . . . Piercing Weapon . | . . . . . . . . . . . . . . . . Special Melee Weapon . | . . . . . . . . . . . . . . . . Unidentified Prototypes 1 | . . . . . . . . . . . 1 . . . . Parts Lost 48 | . . 6 1 3 1 . . 1 1 11 . 3 . 19 2 Power 5 | . . 1 . . . . . . . . . . . 3 1 Propulsion 19 | . . 3 . 1 1 . . . . 5 . 1 . 7 1 Utility 17 | . . 2 1 1 . . . . 1 4 . 2 . 6 . Weapon 7 | . . . . 1 . . . 1 . 2 . . . 3 . Highest Loss Streak 15 | . . 2 1 1 1 . . 1 1 8 . 2 . 15 2 To Critical Strikes . | . . . . . . . . . . . . . . . . Average Slot Usage (%) 93 | . 95 88 92 97 98 100 100 99 98 21 77 91 93 84 12 Engine 5 | . 14 10 11 1 5 5 6 6 6 1 . . . 3 . Core 2 | . . . . 7 3 3 2 . . . 5 6 6 5 2 Treads 24 | . . . . 32 44 38 37 38 33 6 . . . . . Leg 3 | . 24 . . 8 . 6 7 . . 1 . . . 3 . Hover 5 | . 3 27 2 . . . . . . . 15 25 26 19 1 Flight 1 | . . . 29 3 . . . . . . 6 . . . . Device 7 | . 12 11 10 6 . . . 8 13 2 16 6 6 16 . Storage 7 | . 11 11 10 9 9 9 9 7 5 1 2 6 6 4 . Processor 5 | . . . . 7 9 9 9 1 4 1 6 6 6 5 5 Hackware 1 | . . . . . . . . 7 6 1 . . . . . Protection 6 | . . 5 6 3 9 9 9 3 6 . 4 18 20 3 . Energy Cannon 1 | . . 5 . . . . . 2 5 . . . . . . Ballistic Gun 7 | . . 4 22 18 18 9 . . . 1 16 18 20 1 . Ballistic Cannon 8 | . . . . . . 9 18 18 13 2 . 1 . 14 2 Launcher 1 | . 23 2 . . . . . . . . . . . . . Peak Build Rating 91 | 5 9 16 15 25 25 31 32 38 45 41 71 69 68 91 29 Average Rating 34 | 3 7 12 11 21 23 27 30 36 42 9 59 66 68 79 13 On Entrance 27 | . 5 8 14 11 25 23 30 29 38 36 . 69 68 68 13 Naked Turns 71 | . . . . . . . . . . 54 17 . . . . Heaviest Build 157 | 7 51 53 52 94 94 109 109 118 123 122 62 75 73 157 28 Greatest Support 105 | 20 20 24 18 105 105 100 102 102 100 100 50 50 50 50 9 Greatest Overweight (x) 10 | . 4 8 3 2 1 1 1 1 1 4 2 2 1 10 3 Average Overweight (x) . | . 1 2 . . . . 1 1 1 . . 1 1 2 . Largest Inventory Capacity 25 | 5 20 20 20 25 25 25 25 25 25 25 10 15 15 25 5 Average Capacity 19 | 5 17 20 9 10 25 25 25 25 24 9 7 11 15 23 5 Most Carried 22 | 2 8 13 12 10 15 22 22 20 22 5 9 10 9 19 5 Average Carried 12 | . 3 8 5 7 11 15 18 14 19 3 5 8 8 15 4 Final Capacity 25 | 5 20 20 8 25 25 25 25 25 25 5 10 15 15 5 5 Final Carried 20 | 2 6 9 5 10 14 17 14 20 6 2 9 8 9 5 5 Class Distribution -------------------- 42% | Scavenger-Mutant 22% | Scavenger-Tank 14% | Mutant 11% | Tank 4% | Gunner 4% | Hacker-Gunner Dominant Class ---------------- Mutant | -10/Materials Mutant | -9/Materials Scavenger-Mutant | -9/Mines Scavenger-Mutant | -8/Materials Scavenger-Mutant | -8/Garrison Scavenger-Mutant | -8/Materials Scavenger-Mutant | -8/Storage Scavenger-Tank | -7/Factory Scavenger-Tank | -6/Factory Mutant | -6/Waste Tank | -6/Factory Tank | -6/Lower Caves Tank | -6/Lower Caves Gunner | -5/Factory Mutant | -5/Extension Resources | -11 -10 -9 -9 -8 -8 -8 -8 -7 -6 -6 -6 -6 -6 -5 -5 ----------- Run | Yrd Mat Mat Min Mat Gar Mat Sto Fac Fac Was Fac Low Low Fac Ext Matter Collected 7517 | 256 220 265 257 905 387 757 1007 950 695 42 536 665 39 536 . Remotely . | . . . . . . . . . . . . . . . . Salvage Created 9215 | 50 209 580 257 1683 725 846 1277 895 811 . 369 997 47 469 . Parts 540 | 3 20 34 24 97 48 70 71 45 37 . 14 49 4 24 . Haulers Intercepted 5 | . 1 . . 1 . 1 2 . . . . . . . . Recyclers Shooed 3 | . . . . . . . 1 . 1 . 1 . . . . Parts Field Recycled . | . . . . . . . . . . . . . . . . Retrieved Matter . | . . . . . . . . . . . . . . . . Parts Self-Destructed 46 | . . . . . . . . . . . . 40 6 . . Prevented . | . . . . . . . . . . . . . . . . Kills | -11 -10 -9 -9 -8 -8 -8 -8 -7 -6 -6 -6 -6 -6 -5 -5 ------- Run | Yrd Mat Mat Min Mat Gar Mat Sto Fac Fac Was Fac Low Low Fac Ext Combat Hostiles Destroyed 193 | 1 6 14 9 34 18 13 31 22 11 . 3 18 1 12 . Guns 95 | 1 . 7 9 34 18 5 . . . . 3 17 1 . . Cannons 87 | . . 5 . . . 8 31 22 10 . . 1 . 10 . AOE 10 | . 6 2 . . . . . . . . . . . 2 . Classes Destroyed 18 | 1 4 4 2 3 . . 1 1 . . . 1 . 1 . Worker 18 | . . 1 1 1 . 6 2 1 4 . 1 . . 1 . Builder 15 | . 1 2 . . . 5 1 1 2 . . . . 3 . Tunneler 1 | . . . 1 . . . . . . . . . . . . Hauler 5 | . 1 . . 1 . 1 2 . . . . . . . . Recycler 9 | . . . . 2 . 1 1 1 2 . 1 . . 1 . Mechanic 4 | . 1 . . . . 1 1 . 1 . . . . . . Operator 3 | . . . . 1 . 1 . 1 . . . . . . . Watcher 17 | . 1 3 . 3 . 3 2 2 2 . 1 . . . . Swarmer 46 | . . 6 7 12 6 1 5 . . . 1 8 . . . Grunt 73 | 1 6 4 1 11 8 4 12 8 7 . . 6 . 5 . Brawler 8 | . . . 1 . . . 3 1 1 . 1 . . 1 . Duelist 7 | . . 1 . . . . 2 1 . . . 2 . 1 . Protector 1 | . . . . . . . 1 . . . . . . . . Sentry 37 | . . 3 . 10 4 6 7 3 1 . 1 2 . . . Specialist 1 | . . . . . . . . . . . . . . 1 . Hunter 9 | . . . . 1 . 2 1 2 . . . . . 3 . Programmer 11 | . . . . . . . . 7 2 . . . 1 1 . Samaritan 2 | . . . . . . . . . . . . 2 . . . Best Kill Streak 10 | 1 7 7 4 8 5 7 9 3 3 . 2 10 1 5 . Combat Bots Only 10 | 1 3 4 4 7 5 4 9 3 2 . 2 10 1 4 . Max Kills in Single Turn 3 | 1 3 2 1 2 1 2 2 1 2 . 1 1 1 2 . Gunslinging 1 | . . . . 1 . . . . . . . . . . . Exploded 2 | . 2 1 . . . . . . . . . . . 1 . Melee . | . . . . . . . . . . . . . . . . Uniques/NPCs Destroyed . | . . . . . . . . . . . . . . . . Combat | -11 -10 -9 -9 -8 -8 -8 -8 -7 -6 -6 -6 -6 -6 -5 -5 -------- Run | Yrd Mat Mat Min Mat Gar Mat Sto Fac Fac Was Fac Low Low Fac Ext Hostile Shots Fired 1393 | 2 11 99 33 157 82 93 120 150 103 12 45 135 1 302 48 Missed 425 | 1 5 24 13 47 21 34 29 52 44 . 21 31 . 88 15 Damage Taken 10314 | 8 50 645 180 1116 706 693 1028 787 618 392 111 666 12 2822 480 Core 2171 | . 8 139 12 138 38 81 167 64 84 344 1 82 . 742 271 Absorbed by Shields 678 | . . . . . . . . 119 225 35 46 249 4 . . Redirected to Shielding 164 | . . . 7 31 . . . . 105 . . 21 . . . Ignored by Resistances 3656 | 2 18 194 57 331 208 200 292 267 245 111 96 696 4 797 138 Regen/Repaired (Parts) 478 | . . . . . . . . . 478 . . . . . . Core Remaining (%) 68 | 100 96 . 62 . . . 22 90 . . . . 39 . . Volleys Fired 560 | 2 6 39 21 94 52 63 87 61 40 1 16 38 3 37 . Largest 3 | 2 2 2 2 2 2 2 2 3 3 3 3 3 3 3 . Hottest 176 | 60 60 133 43 46 46 96 96 176 176 129 93 111 93 171 . Shots Fired 1231 | 4 12 71 42 187 104 126 149 154 120 3 45 111 9 93 1 Gun 599 | 4 . 41 42 187 104 66 . 3 . 1 45 97 9 . . Cannon 616 | . . 26 . . . 60 149 151 120 2 . 14 . 93 1 Launcher 16 | . 12 4 . . . . . . . . . . . . . Special . | . . . . . . . . . . . . . . . . Kinetic 1092 | 2 . 14 42 187 104 126 149 126 80 3 45 111 9 93 1 Thermal 112 | . . 44 . . . . . 28 40 . . . . . . Explosive 16 | . 12 4 . . . . . . . . . . . . . Electromagnetic 11 | 2 . 9 . . . . . . . . . . . . . Robot Hit Streak 38 | 4 5 20 12 33 37 38 15 16 20 13 20 15 2 9 . Robot Miss Streak 4 | . 1 3 3 2 1 1 3 3 1 . 4 3 2 2 . Penetration Max 3 | . . . . . . 1 . . . . 1 3 . 1 . Secondary Targets 14 | . . 1 2 5 3 . . . . . 1 2 . . . Max Gunslinging Chain 1 | . . 1 1 1 1 . . . . . 1 1 . . . Shots Hit Robots 880 | 4 8 45 27 158 79 99 100 107 84 3 34 68 5 59 . Core Hits 417 | 2 16 26 13 70 37 42 55 42 34 1 13 36 2 28 . Critical Kills 17 | 1 . 1 . 1 . 1 . . . . 1 11 1 . . Critical Parts Destroyed 16 | . . . . . . 1 . . . . 5 9 1 . . Critical Strikes 65 | 1 . 2 . 1 . 3 5 2 5 . 6 20 2 18 . Burn 1 | . . 1 . . . . . . . . . . . . . Destroy 33 | 1 . 1 . 1 . 2 . . . . 6 20 2 . . Blast 31 | . . . . . . 1 5 2 5 . . . . 18 . Melee Attacks . | . . . . . . . . . . . . . . . . Impact . | . . . . . . . . . . . . . . . . Slashing . | . . . . . . . . . . . . . . . . Piercing . | . . . . . . . . . . . . . . . . Sneak Attacks . | . . . . . . . . . . . . . . . . Combat Hostiles . | . . . . . . . . . . . . . . . . Follow-up Attacks . | . . . . . . . . . . . . . . . . Damage Inflicted 20305 | 53 675 977 368 2362 1158 2233 2784 2761 2411 55 605 1343 64 2456 . Guns 7115 | 53 . 426 368 2362 1158 851 . 18 . 7 605 1203 64 . . Cannons 12087 | . . 391 . . . 1382 2784 2739 2411 48 . 140 . 2192 . Explosions 1099 | . 675 160 . . . . . . . . . . . 264 . Melee . | . . . . . . . . . . . . . . . . Ramming 4 | . . . . . . . . 4 . . . . . . . Kinetic 17128 | 28 . 165 368 2362 1158 2233 2784 2251 1520 55 605 1343 64 2192 . Thermal 2045 | . . 648 . . . . . 506 891 . . . . . . Explosive 1016 | . 675 77 . . . . . . . . . . . 264 . Electromagnetic 112 | 25 . 87 . . . . . . . . . . . . . Impact . | . . . . . . . . . . . . . . . . Slashing . | . . . . . . . . . . . . . . . . Piercing . | . . . . . . . . . . . . . . . . Highest Corruption 15 | . . . 4 . . . . 3 . 15 15 15 15 2 2 Average Corruption 10 | . . . 4 . . . . 2 . 10 15 15 15 1 2 Corruption Purged 1 | . . . . . . . . 1 . . . . . . . Corruption Blocked . | . . . . . . . . . . . . . . . . Effects 85 | . . . 4 . . . . 5 . 5 32 31 6 1 1 Message Errors 16 | . . . . . . . . . . 1 5 7 3 . . Matter Fused 22 | . . . 1 . . . . . . . 13 6 1 1 . Heat Flow Errors 12 | . . . 2 . . . . 2 . . 5 3 . . . Energy Discharges 9 | . . . 1 . . . . 1 . . 2 4 1 . . Parts Rejected 2 | . . . . . . . . . . . . 2 . . . Parts Fused 1 | . . . . . . . . . . . 1 . . . . Data Loss (minor) 7 | . . . . . . . . 1 . . 2 3 1 . . Data Loss (major) 5 | . . . . . . . . 1 . 2 1 1 . . . Misfires 2 | . . . . . . . . . . . . 1 . . 1 Alerts 1 | . . . . . . . . . . 1 . . . . . Misdirections 1 | . . . . . . . . . . 1 . . . . . Weapon Failures 7 | . . . . . . . . . . . 3 4 . . . Overload Shots . | . . . . . . . . . . . . . . . . Overflow Damage 261 | . 15 3 . . . . 58 75 81 . . . . 29 . Projectiles 241 | . . 3 . . . . 58 75 81 . . . . 24 . Explosions 20 | . 15 . . . . . . . . . . . . 5 . Melee . | . . . . . . . . . . . . . . . . Knockbacks 76 | . . . . . . 14 14 14 12 . . 1 . 21 . Impact 1 | . . . . . . . . 1 . . . . . . . Kinetic 69 | . . . . . . 12 13 13 10 . . 1 . 20 . Secondary 6 | . . . . . . 2 1 . 2 . . . . 1 . Self-Inflicted Damage 205 | . . . . . . . . . . . . . . 205 . Shots 5 | . . . . . . . . . . . . . . 5 . Rammed 1 | . . . . . . . . 1 . . . . . . . Targets Rammed 1 | . . . . . . . . 1 . . . . . . . Kicked . | . . . . . . . . . . . . . . . . Crushed . | . . . . . . . . . . . . . . . . Highest Temperature 581 | 6 . 521 272 20 70 421 468 502 60 . 281 581 84 420 . Average Temperature 115 | 6 . 201 116 5 15 128 126 95 9 . 78 171 36 133 . Received Heat Transfer 3291 | 6 36 264 36 486 477 270 576 195 182 . . 145 . 537 81 Effects 47 | . . 9 . . . 1 9 7 . . . 19 . 2 . Shutdowns 10 | . . 3 . . . . 2 1 . . . 3 . 1 . Energy Bleed 6 | . . 2 . . . . 2 . . . . 2 . . . Interference 9 | . . 1 . . . . 2 3 . . . 3 . . . Matter Decay 4 | . . 1 . . . 1 1 . . . . 1 . . . Short Circuit 3 | . . . . . . . . 1 . . . 1 . 1 . Damage (minor) 9 | . . 2 . . . . 2 . . . . 5 . . . Damage (major) 6 | . . . . . . . . 2 . . . 4 . . . Siege Activations . | . . . . . . . . . . . . . . . . Robots Corrupted . | . . . . . . . . . . . . . . . . Combat Hostiles . | . . . . . . . . . . . . . . . . Parts Fried . | . . . . . . . . . . . . . . . . Impact Corruptions . | . . . . . . . . . . . . . . . . Robots Melted 1 | . . . . . . . . . 1 . . . . . . Combat Hostiles 1 | . . . . . . . . . 1 . . . . . . Parts Melted 6 | . . 3 . . . . . . 3 . . . . . . Heat Transferred 3984 | . . 1334 . . . . . 950 1700 . . . . . . Parts Sabotaged . | . . . . . . . . . . . . . . . . Parts Stolen . | . . . . . . . . . . . . . . . . Parts Stripped . | . . . . . . . . . . . . . . . . Power Chain Reactions 2 | . . 2 . . . . . . . . . . . . . Alert | -11 -10 -9 -9 -8 -8 -8 -8 -7 -6 -6 -6 -6 -6 -5 -5 ------- Run | Yrd Mat Mat Min Mat Gar Mat Sto Fac Fac Was Fac Low Low Fac Ext Peak Influence 867 | 20 353 271 313 572 867 772 711 265 151 1 193 . . 321 109 Initial 363 | . 11 . 84 103 325 363 205 235 107 1 . . . 125 82 Average 263 | 3 144 162 233 343 664 544 430 153 60 . 25 . . 180 91 Maximum Alert Level 3 | . 1 1 1 2 3 3 3 1 . . . . . 1 . Low Security (%) 48 | 100 85 65 38 16 . . . 54 100 100 100 . . 67 100 Level 1 24 | . 14 34 61 42 8 13 35 45 . . . . . 32 . Level 2 21 | . . . . 40 41 74 59 . . . . . . . . Level 3 5 | . . . . . 49 11 4 . . . . . . . . Level 4 . | . . . . . . . . . . . . . . . . Level 5 . | . . . . . . . . . . . . . . . . High Security . | . . . . . . . . . . . . . . . . Max Security . | . . . . . . . . . . . . . . . . Squads Dispatched 41 | . 2 . . 6 . 4 6 12 6 . 2 . . 3 . Investigation 14 | . 2 . . 2 . 3 1 4 . . 2 . . . . Extermination 7 | . . . . . . . . 4 2 . . . . 1 . Reinforcement 6 | . . . . 2 . 1 . . 1 . . . . 2 . Assault 2 | . . . . . . . 2 . . . . . . . . Garrison 12 | . . . . 2 . . 3 4 3 . . . . . . Intercept . | . . . . . . . . . . . . . . . . Searches Triggered . | . . . . . . . . . . . . . . . . Construction Impeded 1 | . . . . . . . . . . . . . . 1 . Haulers Reinforced 1 | . . . . . . . . . 1 . . . . . . Active Scanning Responses . | . . . . . . . . . . . . . . . . Cargo Convoy Interrupts 1 | . . . . . . . . . . . . . . 1 . Stealth | -11 -10 -9 -9 -8 -8 -8 -8 -7 -6 -6 -6 -6 -6 -5 -5 --------- Run | Yrd Mat Mat Min Mat Gar Mat Sto Fac Fac Was Fac Low Low Fac Ext Distress Signals 9 | . . 1 . 4 . 1 1 1 . . . . . . 1 Communications Jammed . | . . . . . . . . . . . . . . . . Distress Signals . | . . . . . . . . . . . . . . . . Times Spotted 276 | 1 8 18 9 48 19 26 40 25 14 6 8 22 1 17 14 Peak Tracking Total 14 | 1 3 5 4 6 4 5 7 4 3 6 2 11 1 10 14 Tactical Retreats 14 | . . . . 4 . 3 1 2 1 . . 2 1 . . Traps | -11 -10 -9 -9 -8 -8 -8 -8 -7 -6 -6 -6 -6 -6 -5 -5 ------- Run | Yrd Mat Mat Min Mat Gar Mat Sto Fac Fac Was Fac Low Low Fac Ext Traps Triggered 13 | . 4 . . . 3 1 . 1 2 . 2 . . . . Indirectly . | . . . . . . . . . . . . . . . . Trap Hack Attempts . | . . . . . . . . . . . . . . . . Triggered . | . . . . . . . . . . . . . . . . Disarmed . | . . . . . . . . . . . . . . . . Reprogrammed . | . . . . . . . . . . . . . . . . Reused . | . . . . . . . . . . . . . . . . Traps Extracted . | . . . . . . . . . . . . . . . . Installed . | . . . . . . . . . . . . . . . . Triggered . | . . . . . . . . . . . . . . . . Machines | -11 -10 -9 -9 -8 -8 -8 -8 -7 -6 -6 -6 -6 -6 -5 -5 ---------- Run | Yrd Mat Mat Min Mat Gar Mat Sto Fac Fac Was Fac Low Low Fac Ext Machines Disabled 25 | . 1 2 2 . 2 1 2 1 . . 5 . . 9 . Max in Single Turn 5 | . 1 1 1 . 1 1 1 1 . . 5 . . 5 . Garrison Relay 2 | . . . . . 2 . . . . . . . . . . Machines Repaired . | . . . . . . . . . . . . . . . . Machines Dismantled . | . . . . . . . . . . . . . . . . Machines Sabotaged . | . . . . . . . . . . . . . . . . Overloaded Fab Kills . | . . . . . . . . . . . . . . . . Hacking | -11 -10 -9 -9 -8 -8 -8 -8 -7 -6 -6 -6 -6 -6 -5 -5 --------- Run | Yrd Mat Mat Min Mat Gar Mat Sto Fac Fac Was Fac Low Low Fac Ext Machines Accessed 47 | . 8 3 . 8 4 4 6 5 2 . 6 . . 1 . Terminals 29 | . 6 2 . 4 4 2 4 2 1 . 4 . . . . Fabricators 2 | . . . . . . . . 1 . . 1 . . . . Repair Stations 2 | . . . . . . . . 1 1 . . . . . . Recycling Units 6 | . 2 . . 1 . . 1 . . . 1 . . 1 . Scanalyzers 5 | . . 1 . 2 . 2 . . . . . . . . . Garrison Access 3 | . . . . 1 . . 1 1 . . . . . . . Total Hacks 128 | . 30 12 . 18 5 11 16 16 6 . 13 . . 1 . Successful 86 | . 23 11 . 15 2 7 10 5 5 . 8 . . . . Failed 42 | . 7 1 . 3 3 4 6 11 1 . 5 . . 1 . Catastrophic 2 | . 1 . . . 1 . . . . . . . . . . Database Lockouts . | . . . . . . . . . . . . . . . . Manual 2 | . . . . . 2 . . . . . . . . . . Terminals 80 | . 26 6 . 11 5 4 12 7 2 . 7 . . . . Fabricators 5 | . . . . . . . . 3 . . 2 . . . . Repair Stations 7 | . . . . . . . . 3 4 . . . . . . Recycling Units 11 | . 4 . . 1 . . 1 . . . 4 . . 1 . Scanalyzers 18 | . . 6 . 5 . 7 . . . . . . . . . Garrison Access 7 | . . . . 1 . . 3 3 . . . . . . . Terminal Hacks 55 | . 21 5 . 8 2 2 9 3 1 . 4 . . . . Record 27 | . 12 3 . 5 . 1 3 . . . 3 . . . . Part Schematic 2 | . . . . . . . 1 1 . . . . . . . Robot Schematic 1 | . . . . . . . 1 . . . . . . . . Robot Analysis 2 | . 2 . . . . . . . . . . . . . . Prototype ID Bank 9 | . 5 1 . 1 . . 2 . . . . . . . . Open Door 3 | . . . . . 1 . 2 . . . . . . . . Open DSF 3 | . . . . . . . . 1 1 . 1 . . . . Branch Access Points 2 | . . 1 . . . 1 . . . . . . . . . Emergency Access Points 2 | . 1 . . . 1 . . . . . . . . . . Fabricator Index 1 | . . . . . . . . 1 . . . . . . . Alert Level 1 | . . . . 1 . . . . . . . . . . . Unreport Threat 1 | . . . . 1 . . . . . . . . . . . Locate Traps 1 | . 1 . . . . . . . . . . . . . . Fabricator Hacks 3 | . . . . . . . . 1 . . 2 . . . . Load Schematic 2 | . . . . . . . . 1 . . 1 . . . . Build 1 | . . . . . . . . . . . 1 . . . . Repair Station Hacks 5 | . . . . . . . . 1 4 . . . . . . Scan Component 3 | . . . . . . . . 1 2 . . . . . . Repair 2 | . . . . . . . . . 2 . . . . . . Recycling Unit Hacks 6 | . 2 . . 1 . . 1 . . . 2 . . . . Report Inventory 3 | . . . . 1 . . 1 . . . 1 . . . . Retrieve Components 3 | . 2 . . . . . . . . . 1 . . . . Scanalyzer 16 | . . 6 . 5 . 5 . . . . . . . . . Insert Component 10 | . . 3 . 3 . 4 . . . . . . . . . Analyze 6 | . . 3 . 2 . 1 . . . . . . . . . Garrison Access Hacks 1 | . . . . 1 . . . . . . . . . . . Unlock Access 1 | . . . . 1 . . . . . . . . . . . Unauthorized Hacks . | . . . . . . . . . . . . . . . . Terminals . | . . . . . . . . . . . . . . . . Fabricators . | . . . . . . . . . . . . . . . . Repair Stations . | . . . . . . . . . . . . . . . . Recycling Units . | . . . . . . . . . . . . . . . . Scanalyzers . | . . . . . . . . . . . . . . . . Garrison Access . | . . . . . . . . . . . . . . . . Data Cores Recovered 1 | . . . . . . . . 1 . . . . . . . Used . | . . . . . . . . . . . . . . . . Hacking Detections 39 | . 6 3 . 5 3 4 5 5 2 . 5 . . 1 . Full Trace Events 16 | . 3 . . 2 . 2 3 4 . . 2 . . . . Feedback Events . | . . . . . . . . . . . . . . . . Feedback Blocked . | . . . . . . . . . . . . . . . . Robot Schematics Acquired 1 | . . . . . . . 1 . . . . . . . . Robots Built . | . . . . . . . . . . . . . . . . Authchips . | . . . . . . . . . . . . . . . . Time . | . . . . . . . . . . . . . . . . Total Robot Build Rating . | . . . . . . . . . . . . . . . . Part Schematics Acquired 8 | . . 3 . 2 . 1 1 1 . . . . . . . Parts Built 2 | . . . . . . . . . . . 2 . . . . Authchips . | . . . . . . . . . . . . . . . . Time 62 | . . . . . . . . . . . 62 . . . . Total Part Build Rating 4 | . . . . . . . . . . . 4 . . . . Parts Repaired 2 | . . . . . . . . . 2 . . . . . . Time 70 | . . . . . . . . . 70 . . . . . . Parts Recycled . | . . . . . . . . . . . . . . . . Recycled Matter . | . . . . . . . . . . . . . . . . Retrieved Matter . | . . . . . . . . . . . . . . . . Retrieved Components 4 | . 3 . . . . . . . . . 1 . . . . Parts Scanalyzed 7 | . . 3 . 2 . 2 . . . . . . . . . Part Schematics Acquired 6 | . . 3 . 2 . 1 . . . . . . . . . Parts Damaged 1 | . . . . . . 1 . . . . . . . . . Bothacking | -11 -10 -9 -9 -8 -8 -8 -8 -7 -6 -6 -6 -6 -6 -5 -5 ------------ Run | Yrd Mat Mat Min Mat Gar Mat Sto Fac Fac Was Fac Low Low Fac Ext Used RIF Installer . | . . . . . . . . . . . . . . . . Robots Hacked . | . . . . . . . . . . . . . . . . Non-combat . | . . . . . . . . . . . . . . . . Combat . | . . . . . . . . . . . . . . . . Robot Hacks Applied . | . . . . . . . . . . . . . . . . Relay Couplers Released 15 | . . . . . 8 . . 7 . . . . . . . Machine Destruction 8 | . . . . . 8 . . . . . . . . . . Programmers 7 | . . . . . . . . 7 . . . . . . . Fabnet Peak Effective % . | . . . . . . . . . . . . . . . . Robots Rewired . | . . . . . . . . . . . . . . . . Allies Hacked . | . . . . . . . . . . . . . . . . Hacks Repelled . | . . . . . . . . . . . . . . . . Allies | -11 -10 -9 -9 -8 -8 -8 -8 -7 -6 -6 -6 -6 -6 -5 -5 -------- Run | Yrd Mat Mat Min Mat Gar Mat Sto Fac Fac Was Fac Low Low Fac Ext Total Allies 5 | . . . 1 . 1 . 2 . . 1 . . . . . Largest Group 2 | . . . 1 1 1 1 2 . . 1 . . . . . Highest-Rated Group 62 | . . . 31 31 39 39 62 . . 31 . . . . . Highest-Rated Ally 39 | . . . 31 31 39 39 31 . . 31 . . . . . Total Orders . | . . . . . . . . . . . . . . . . Ally Attacks 94 | . . . . 26 . 26 30 . . 12 . . . . . Total Damage 1183 | . . . . 273 . 263 521 . . 126 . . . . . Kills 10 | . . . . 2 . 5 3 . . . . . . . . Allies Corrupted . | . . . . . . . . . . . . . . . . Allies Melted . | . . . . . . . . . . . . . . . . Intel | -11 -10 -9 -9 -8 -8 -8 -8 -7 -6 -6 -6 -6 -6 -5 -5 ------- Run | Yrd Mat Mat Min Mat Gar Mat Sto Fac Fac Was Fac Low Low Fac Ext Robot Analysis Total 2 | . 2 . . . . . . . . . . . . . . Derelict Logs Recovered 4 | . . . 1 . . . . . . . . 3 . . . Drone Launches 3 | . . . . . . . . . . . . . . 3 . Drone Recoveries . | . . . . . . . . . . . . . . . . Exploration | -11 -10 -9 -9 -8 -8 -8 -8 -7 -6 -6 -6 -6 -6 -5 -5 ------------- Run | Yrd Mat Mat Min Mat Gar Mat Sto Fac Fac Was Fac Low Low Fac Ext Turns Passed 13187 | 82 816 729 353 1333 983 1238 1349 1973 1733 156 758 606 163 820 95 Spaces Moved 6439 | 64 345 266 391 628 494 457 457 732 629 162 704 456 156 368 130 Core 257 | 17 . . . . . . . . . 104 28 . . 17 91 Treads 3380 | . . . . 587 494 457 457 732 629 24 . . . . . Legs 395 | 47 308 . . 6 . . . . . 34 . . . . . Wheels . | . . . . . . . . . . . . . . . . Hover 1763 | . 37 266 8 . . . . . . . 491 456 156 310 39 Flight 644 | . . . 383 35 . . . . . . 185 . . 41 . Fastest Speed 32 | 50 120 172 34 114 157 160 236 237 240 50 32 98 98 32 40 Average Speed 168 | 101 222 205 60 154 162 214 237 239 240 88 89 98 98 181 68 Slowest Speed 540 | 120 296 540 236 197 240 240 240 240 240 480 160 152 98 470 280 Overloaded Moves . | . . . . . . . . . . . . . . . . Propulsion Burnouts . | . . . . . . . . . . . . . . . . Robots Hopped 1 | . . . . . . . . . . . . . . 1 . Cave-ins Triggered . | . . . . . . . . . . . . . . . . Exploration Rate (%) 40 | 5 73 31 75 50 53 38 62 17 15 81 21 58 35 8 25 Regions Visited 15 Branch Regions 5 Pre-discovered Areas 1 | . . . . . . . . . . . . 1 . . . Known Exits Taken 4 | . . 1 . 1 . 1 1 . . . . . . . . Unknown Exits Taken 8 | 1 1 . 1 . . . . 1 . . 1 1 1 1 . Scrap Searched 5 | . . . 1 . . . . . . . . 2 2 . . Spaces Dug 8 | . . . . . . . . . . . . . . 8 . Terrain Destroyed 303 | . 69 31 . . . 7 29 13 11 . 40 7 . 95 1 Melee . | . . . . . . . . . . . . . . . . Projectile 105 | . . . . . . 7 29 13 11 . . 4 . 40 1 AOE 195 | . 69 31 . . . . . . . . 40 . . 55 . Terrain Rammed . | . . . . . . . . . . . . . . . . Walls Destroyed . | . . . . . . . . . . . . . . . . Machines Disabled . | . . . . . . . . . . . . . . . . Actions | -11 -10 -9 -9 -8 -8 -8 -8 -7 -6 -6 -6 -6 -6 -5 -5 --------- Run | Yrd Mat Mat Min Mat Gar Mat Sto Fac Fac Was Fac Low Low Fac Ext Total 7671 | 77 383 375 467 804 572 590 574 828 763 169 794 527 159 453 136 Wait 186 | . 1 33 12 4 2 18 . 3 78 . 12 15 . 8 . Move 6421 | 63 344 265 390 627 491 456 456 731 629 161 703 455 155 365 130 Hop 1 | . . . . . . . . . . . . . . 1 . Pick Up 177 | 7 13 15 10 26 10 20 9 13 8 . 21 7 1 16 1 Fast Attach 14 | . 2 . . 1 . . . . 1 3 6 . . 1 . Attach 76 | 5 4 8 6 6 2 1 . 4 3 4 14 6 . 10 3 Detach 12 | . 1 . 4 . . 1 . . . . 2 . . 2 2 Swap 110 | . 4 10 11 25 6 14 10 12 3 . 1 3 . 11 . Drop 96 | . 8 5 13 21 5 17 12 3 1 . 6 3 . 2 . Fire 560 | 2 6 39 21 94 52 63 87 61 40 1 16 38 3 37 . Melee . | . . . . . . . . . . . . . . . . Ram . | . . . . . . . . . . . . . . . . Kick . | . . . . . . . . . . . . . . . . Crush 1 | . . . . . . . . 1 . . . . . . . Escape Stasis 17 | . . . . . 4 . . . . . 13 . . . . Rewire . | . . . . . . . . . . . . . . . . Trap . | . . . . . . . . . . . . . . . . Miscellaneous . | . . . . . . . . . . . . . . . . Route ------- -11/Scrapyard -10/Materials (discovered 3 exits: *Mat x2 / [*Min]) -9/Materials -9/Mines (discovered 2 exits: *Mat x2) -8/Materials (discovered 3 exits: *Fac / *Sto / Gar) -8/Garrison (discovered 2 exits: *Mat x2) -8/Materials (discovered 2 exits: *Sto x2) -8/Storage -7/Factory -6/Factory -6/Waste -6/Factory -6/Lower Caves -6/Lower Caves -5/Factory -5/Extension History --------- Turn | Location | Event 2 | -11/Scrapyard | Met Revision 17 60 | -11/Scrapyard | Discovered new exit (range 8) 83 | -11/Scrapyard | Entered Materials 307 | -10/Materials | Build established: Mutant 517 | -10/Materials | Discovered new exit (range 15) 659 | -10/Materials | Discovered new exit (range 7) 798 | -10/Materials | Discovered new exit (range 16) 899 | -10/Materials | Entered another Materials area 899 | -9/Materials | Evolved 2 slots: Propulsion x1, Utility x1 1401 | -9/Materials | Discovered new exit (range 16) 1558 | -9/Materials | Identified exit to Mines 1628 | -9/Materials | Entered Mines 1655 | -9/Mines | Escorted by a lone wolf Derelict 1666 | -9/Mines | Met a Derelict bent on vengeance 1697 | -9/Mines | Found DCF Scrap (16 items) 1737 | -9/Mines | Learned location of 1 exit from Materials 1751 | -9/Mines | Discovered new exit (range 9) 1798 | -9/Mines | Build established: Scavenger-Mutant 1808 | -9/Mines | Found a damaged Exp. Sensor Array with a note attached 1809 | -9/Mines | Found Prototype Device 1958 | -9/Mines | Discovered new exit (range 9) 1981 | -9/Mines | Entered Materials 1981 | -8/Materials | Accompanied by 1 ally 1981 | -8/Materials | Evolved 2 slots: Propulsion x2 1982 | -8/Materials | Identified exit to Factory 2507 | -8/Materials | Destroyed 7 combat bots 3165 | -8/Materials | Discovered new exit (range 5) 3191 | -8/Materials | Garrison activated, responded to threat 3304 | -8/Materials | Identified exit to Garrison 3314 | -8/Materials | Entered Garrison 3376 | -8/Garrison | Triggered checkpoint 3438 | -8/Garrison | Garrison Relay disabled 3548 | -8/Garrison | Triggered checkpoint 3564 | -8/Garrison | Triggered checkpoint 3667 | -8/Garrison | Discovered new exit (range 10) 3681 | -8/Garrison | Attempted to access garrison exit controls, blocked by remote lockdown 3796 | -8/Garrison | Triggered checkpoint 3840 | -8/Garrison | Garrison Relay disabled 3938 | -8/Garrison | Triggered checkpoint 4165 | -8/Garrison | Discovered new exit (range 8) 4239 | -8/Garrison | Rescued a captive Derelict 4297 | -8/Garrison | Entered Materials 4297 | -8/Materials | Accompanied by 1 ally 4658 | -8/Materials | Identified exit to Storage 5284 | -8/Materials | Identified Exp. Sensor Array 5535 | -8/Materials | Entered Storage 5622 | -8/Storage | Core integrity fell below 50% 6529 | -8/Storage | Met a pair of Derelict thieves 6546 | -8/Storage | Garrison activated, responded to threat 6646 | -8/Storage | Destroyed 9 combat bots 6870 | -8/Storage | Discovered exit to Factory (range 7) 6884 | -8/Storage | Entered Factory 6884 | -7/Factory | Evolved 2 slots: Utility x1, Weapon x1 7174 | -7/Factory | Build established: Hacker-Gunner 7297 | -7/Factory | Garrison activated, responded to threat 7732 | -7/Factory | Build established: Scavenger-Tank 7843 | -7/Factory | Garrison activated, responded to threat 8310 | -7/Factory | Discovered new exit (range 14) 8857 | -7/Factory | Entered another Factory area 8857 | -6/Factory | Evolved 2 slots: Utility x2 9437 | -6/Factory | Garrison activated, responded to threat 10558 | -6/Factory | Repaired Plasma Cannon 10585 | -6/Factory | Repaired Huge Storage Unit 10590 | -6/Factory | Sucked down chute 10590 | -6/Factory | Entered Waste 10591 | -6/Waste | Met a frightened Derelict 10605 | -6/Waste | EMP discharged 10606 | -6/Waste | Spotted C-40 Crusher 10606 | -6/Waste | Spotted C-40 Crusher 10616 | -6/Waste | Crushed by Compactor (1 part destroyed, 1 dropped) 10619 | -6/Waste | Crushed by Compactor (1 part destroyed, 2 dropped) 10622 | -6/Waste | Crushed by Compactor (1 part destroyed, 2 dropped) 10625 | -6/Waste | Crushed by Compactor (1 part destroyed, 2 dropped) 10626 | -6/Waste | Crushed by Compactor (1 part destroyed, 1 dropped) 10628 | -6/Waste | Crushed by Compactor (1 part destroyed) 10630 | -6/Waste | Crushed by Compactor (1 part destroyed) 10634 | -6/Waste | Spotted C-40 Crusher 10661 | -6/Waste | Lost 8 parts (3n4u1w) 10663 | -6/Waste | Spotted C-40 Crusher 10668 | -6/Waste | Crushed by Compactor (1 part destroyed, 1 dropped) 10672 | -6/Waste | Crushed by Compactor (1 part destroyed, 1 dropped) 10705 | -6/Waste | EMP discharged 10705 | -6/Waste | System corruption reached 10% 10712 | -6/Waste | Spotted C-40 Crusher 10717 | -6/Waste | Spotted C-40 Crusher 10724 | -6/Waste | Crushed by Compactor (1 part destroyed) 10728 | -6/Waste | Core integrity fell below 50% 10736 | -6/Waste | Discovered new exit (range 14) 10746 | -6/Waste | Entered Factory 11217 | -6/Factory | Build established: Tank 11401 | -6/Factory | Fabricated Particle Cannon? 11466 | -6/Factory | Discovered new exit (range 15) 11504 | -6/Factory | Entered Lower Caves 11549 | -6/Lower Caves | Attracted the attention of an 0b10 checkpoint 11945 | -6/Lower Caves | Discovered new exit (range 12) 11964 | -6/Lower Caves | Learned Factory terminal intel 12065 | -6/Lower Caves | Destroyed 10 combat bots 12092 | -6/Lower Caves | Learned Factory interactive machine intel 12110 | -6/Lower Caves | Entered another Lower Caves area 12263 | -6/Lower Caves | Discovered new exit (range 6) 12273 | -6/Lower Caves | Entered Factory 12273 | -5/Factory | Evolved 2 slots: Power x1, Propulsion x1 12274 | -5/Factory | Loaded intel: 53 interactive machine locations 12275 | -5/Factory | Loaded intel: 27 terminal locations 12854 | -5/Factory | Build established: Gunner 12961 | -5/Factory | Spotted B-75 Beast 13014 | -5/Factory | Cargo convoy interrupted 13040 | -5/Factory | Core integrity fell below 50% 13089 | -5/Factory | Discovered new exit (range 3) 13093 | -5/Factory | Entered Extension 13108 | -5/Extension | Lost 15 parts (3p5n4u3w) 13183 | -5/Extension | Core integrity fell below 20% 13188 | -5/Extension | Destroyed by S-27 Virus with Autogun Last Messages --------------- 13099_ System corrupted: FCS attempts to trigger Enh. Gauss Cannon. 13099_ System corrupted: Enh. Gauss Cannon misfires. 13107_ Slug penetrates Wall. 13108_ Slug penetrates Y-64 Sentinel. 13108_ Acquired Fission Core. 13110_ Critical hit (Burn: +37). 13110_ Penetrated by Slug. 13113_ Slug penetrates Wall. 13114_ Penetrated by Slug. 13117_ Slug penetrates Wall. 13126_ Linear Gravjet destroyed. 13130_ U-05 Engineer builds a Wall. 13143_ Penetrated by Slug. 13147_ Fission Core destroyed. 13147_ Slug penetrates Wall. 13182_ W-25 Informer distress signal alerts nearby ally. [Achievement: 10k Club] Map ----- +----------------------------------------------------+ | | | | | | | | | | | | | | | | | | | | | | | | | | | | | | | | | | | | | ?????????????????????????????????????????????????? | | #????????????????????????????????????????????????? | | ##?????????????????????????????????#?????????????? | | ?????????????################## ??????????????? | | ??????????????? s /????????????????? | | ?????????????????# u#??????????????????? | | #?????????????????# #??????????????????? | | ??????????????????# @ R #####??????????????? | | ??????????????????# s s s #???????????? | | ??????????????????#s ss #???????????? | | ??????????#######?#s ############# #???????????? | | ########### #?#s w #?????????????????????????? | | "" ### #?????????????????????????? | | T" u #?????????????????????????? | | ### #?????????????????????????? | | ########### #?# #?????????????????????????? | | ??????????#######?# #?????????????????????????? | | ??????????????????######?????????????????????????? | | ?????????????????????????????????????????????????? | | ?????????????????????????????????????????????????? | | ?????????????????????????????????????????????????? | | ?????????????????????????????????????????????????? | | ?????????????????????????????????????????????????? | | ?????????????????????????????????????????????????? | | ?????????????????????????????????????????????????? | | ?????????????????????????????????????????????????? | | ?????????????????????????????????????????????????? | | ?????????????????????????????????????????????????? | | ?????????????????????????????????????????????????? | | ?????????????????????????????????????????????????? | | ?????????????????????????????????????????????????? | | ?????????????????????????????????????????????????? | +----------------------------------------------------+ Best States ------------- Heat Dissipation 104 Energy Generation 32 Energy Capacity 525 Matter Stores 300 Matter Capacity 300 Sight Range 18 Robot Scan Range 14 Terrain Scan Density 10 ECM Strength 1 Additional Mass Support 6 Armor Coverage 375 Resistance: KI 50 Resistance: TH 20 Resistance: EX 20 Resistance: EM 20 Resistance: I 20 Resistance: S 20 Resistance: P 20 Core Shielding 30 Propulsion Shielding 33 Weapon Shielding 66 Weapon Cycling 15 Phase Shifting 5 Evasion (%) 73 Targeting Accuracy 8 Target Analysis 8 Recoil Reduction 5 Matter Filtering 30 Offensive Hacking 20 Item Schematics ----------------- Particle Cannon | -9/Materials | Scanalyzed Sensor Array | -9/Materials | Scanalyzed Grenade Launcher | -9/Materials | Scanalyzed Adv. Beam Rifle | -8/Materials | Scanalyzed Lgt. Nuclear Core | -8/Materials | Scanalyzed Exp. Sensor Array | -8/Materials | Scanalyzed Airjet | -8/Storage | Hacked Lrn. Proton Cannon | -7/Factory | Hacked Robot Schematics ------------------ A-02 Transporter | -8/Storage | Hacked Fabricated ------------ Particle Cannon | x2 | -6/Factory Alien Tech Used ----------------- None Achievements -------------- 10k Club Everything Is Under Control It's Just You Just What I Needed Loot Pinata Oops Please Form A Line Risk Taker Safety First Serviceable Loadout System Compromised Tourist Challenges ------------ None Game ------ Seed DeepTargetMediator Manual? 0 Play Time 02:57:31 Cumulative 4.4 hours Start 2025.03.28 @ 10:32:14 End 2025.03.29 @ 01:12:02 Sessions 3 Manual Loads 0 Difficulty Adventurer Special Mode None Game No. 2 Rogue 0 Adventurer 2 Explorer 0 Win Type - Total 0 Types 0/0/0/0/0/0/0/0/0 Lore% 2 Gallery% 8 Achievement% 9 Wizard Run 0 Options --------- Layout 1 ASCII 0 Keyboard 0 Movement Mouse Keybinds 0 Fullscreen 1 Font 32/SmallcapsGlow Map View 50x35 Zoom Use 0% Tactical HUD 1 Map Filters NONE Filters NONE Steam 1 RUN: 0f4ad83b-68fa-4c78-b279-a5f94e86c8bd